[Event "Irish International Open 2019"]
[Site "Dublin"]
[Date "2019.04.18"]
[Round "3.14"]
[White "Menzies, Colin"]
[Black "Remenyik, David"]
[Result "1-0"]
[ECO "E05"]
[WhiteElo "2183"]
[BlackElo "1798"]
[Annotator "NA"]
[PlyCount "75"]
[EventDate "2019.02.28"]
[EventType "swiss"]
[EventCountry "IRL"]
[SourceTitle "playchess.com"]
[Source "ChessBase"]
[SourceQuality "1"]
[TimeControl "5400+30"]

1. Nf3 {[%emt 0:00:00]} e6 {[%emt 0:00:00]} 2. c4 {[%emt 0:00:00]} Nf6 {[%emt 0:00:00]} 3. g3 {[%emt 0:00:00]} d5 {[%emt 0:00:00]} 4. d4 {[%emt 0:00:13]} dxc4 {[%emt 0:08:06]} 5. Bg2 {[%emt 0:00:06]} Be7 {[%emt 0:04:47]} 6. O-O {[%emt 0:00:59]} O-O {[%emt 0:00:31]} 7. Qc2 {[%emt 0:01:28]} a6 {[%emt 0:00:34]} 8. a4 {[%emt 0:03:35]} Nbd7 {[%emt 0:14:51]} 9. Na3 {[%emt 0:05:57]} c5 {[%emt 0:09:06]} 10. Rd1 {[%emt 0:03:28]} Qc7 {[%emt 0:09:59]} 11. Nxc4 {[%emt 0:05:49]} Nd5 {[%emt 0:11:50]} 12. e4 {[%emt 0:13:47]} Nb4 {[%emt 0:02:13]} 13. Qb3 {[%emt 0:01:26]} cxd4 {[%emt 0:07:31]} 14. Bf4 {[%emt 0:01:42]} Qc5 {[%emt 0:02:13]} 15. Rac1 {[%emt 0:04:36]} Qh5 {[%emt 0:06:43]} 16. Nd6 {[%emt 0:06:13]} e5 {[%emt 0:06:05]} 17. Nf5 {[%emt 0:00:13]} Nc6 {[%emt 0:05:22]} 18. Rxc6 {[%emt 0:01:42]} bxc6 {[%emt 0:01:17]} 19. Nxe7+ {[%emt 0:00:11]} Kh8 {[%emt 0:00:02]} 20. Nxc8 {[%emt 0:48:35]} exf4 {[%emt 0:06:01]} 21. Nd6 {[%emt 0:00:00]} Rab8 {[%emt 0:01:00]} 22. Qd3 {[%emt 0:00:00]} fxg3 {[%emt 0:01:36]} 23. hxg3 {[%emt 0:00:00]} c5 {[%emt 0:00:18]} 24. Nc4 {[%emt 0:00:00]} f6 {[%emt 0:00:57]} 25. Rc1 {[%emt 0:00:00]} Rbc8 {[%emt 0:00:55]} 26. Nh4 {[%emt 0:00:00]} Ne5 {[%emt 0:00:31]} 27. Nxe5 {[%emt 0:00:00]} fxe5 {[%emt 0:00:06]} 28. Nf5 {[%emt 0:00:00]} Qf7 {[%emt 0:00:52]} 29. Qf1 {[%emt 0:00:00]} Rc6 {[%emt 0:00:31]} 30. b4 {[%emt 0:00:00]} c4 {[%emt 0:00:30]} 31. b5 {[%emt 0:00:00]} axb5 {[%emt 0:00:10]} 32. axb5 {[%emt 0:00:00]} Rc5 {[%emt 0:00:50]} 33. Nd6 {[%emt 0:00:00]} Qe7 {[%emt 0:00:31]} 34. Nxc4 {[%emt 0:00:00]} Rfc8 {[%emt 0:00:19]} 35. Bh3 {[%emt 0:00:00]} R8c7 {[%emt 0:00:35]} 36. b6 {[%emt 0:00:00]} R7c6 {[%emt 0:00:33]} 37. Ra1 {[%emt 0:00:00]} Rxc4 {[%emt 0:00:33]} 38. Qxc4 {[%emt 0:09:00]} 1-0

[Event "Irish International Open 2019"]
[Site "Dublin"]
[Date "2019.04.18"]
[Round "3.16"]
[White "O`Connell, Kevin J."]
[Black "Longson, Sarah N"]
[Result "1-0"]
[ECO "D00"]
[WhiteElo "2328"]
[BlackElo "2123"]
[Annotator "NA"]
[PlyCount "107"]
[EventDate "2019.02.28"]
[EventType "swiss"]
[EventCountry "IRL"]
[SourceTitle "playchess.com"]
[Source "ChessBase"]
[SourceQuality "1"]
[TimeControl "5400+30"]

1. d4 {[%emt 0:00:00]} d5 {[%emt 0:00:00]} 2. Bf4 {[%emt 0:00:00]} c5 {[%emt 0:00:14]} 3. e3 {[%emt 0:00:00]} Nc6 {[%emt 0:00:19]} 4. c3 {[%emt 0:00:00]} Qb6 {[%emt 0:00:22]} 5. Qb3 {[%emt 0:00:28]} c4 {[%emt 0:00:17]} 6. Qc2 {[%emt 0:00:06]} e5 {[%emt 0:00:35]} 7. dxe5 {[%emt 0:00:16]} Bf5 {[%emt 0:00:08]} 8. Qc1 {[%emt 0:00:12]} Nge7 {[%emt 0:01:51]} 9. Nf3 {[%emt 0:00:07]} Ng6 {[%emt 0:01:16]} 10. Bg3 {[%emt 0:01:55]} Bc5 {[%emt 0:01:33]} 11. Be2 {[%emt 0:00:35]} O-O {[%emt 0:01:43]} 12. O-O {[%emt 0:00:13]} Rfe8 {[%emt 0:02:04]} 13. b4 {[%emt 0:15:28]} cxb3 {[%emt 0:02:31]} 14. axb3 {[%emt 0:01:42]} Rac8 {[%emt 0:07:51]} 15. Qb2 {[%emt 0:08:45]} Ngxe5 {[%emt 0:02:51]} 16. Rd1 {[%emt 0:09:39]} Ng4 {[%emt 0:12:18]} 17. Nd4 {[%emt 0:14:42]} Bxd4 {[%emt 0:21:02]} 18. exd4 {[%emt 0:06:43]} Re7 {[%emt 0:12:21]} 19. h3 {[%emt 0:16:06]} Nf6 {[%emt 0:02:27]} 20. f3 {[%emt 0:02:59]} Rce8 {[%emt 0:01:08]} 21. Bf1 {[%emt 0:03:39]} Ne5 {[%emt 0:07:45]} 22. Na3 {[%emt 0:05:11]} Ng6 {[%emt 0:02:32]} 23. Nb5 {[%emt 0:02:38]} Rd8 {[%emt 0:06:29]} 24. Re1 {[%emt 0:04:21]} Rxe1 {[%emt 0:05:02]} 25. Rxe1 {[%emt 0:00:04]} Ne8 {[%emt 0:00:57]} 26. Na3 {[%emt 0:04:33]} a6 {[%emt 0:00:56]} 27. Nc2 {[%emt 0:00:28]} Nf6 {[%emt 0:00:27]} 28. Ne3 {[%emt 0:00:31]} Be6 {[%emt 0:00:17]} 29. Bd3 {[%emt 0:02:08]} Nh5 {[%emt 0:00:23]} 30. Bh2 {[%emt 0:00:18]} Nhf4 {[%emt 0:00:56]} 31. Bf1 {[%emt 0:00:34]} Rc8 {[%emt 0:00:26]} 32. b4 {[%emt 0:00:45]} h6 {[%emt 0:01:44]} 33. Nd1 {[%emt 0:00:31]} Bf5 {[%emt 0:00:36]} 34. Nf2 {[%emt 0:00:11]} Qc6 {[%emt 0:00:52]} 35. Re3 {[%emt 0:00:42]} Bd7 {[%emt 0:01:47]} 36. g3 {[%emt 0:00:41]} Ne6 {[%emt 0:00:24]} 37. f4 {[%emt 0:00:13]} Nc7 {[%emt 0:00:53]} 38. g4 {[%emt 0:00:11]} Nb5 {[%emt 0:00:29]} 39. Bxb5 {[%emt 0:00:13]} Qxb5 {[%emt 0:00:14]} 40. f5 {[%emt 0:00:08]} Nf8 {[%emt 0:00:24]} 41. Bd6 {[%emt 0:01:36]} a5 {[%emt 0:01:37]} 42. Nd3 {[%emt 0:00:36]} a4 {[%emt 0:00:43]} 43. Ne5 {[%emt 0:00:32]} Nh7 {[%emt 0:00:37]} 44. Qa2 {[%emt 0:00:28]} Nf6 {[%emt 0:00:21]} 45. h4 {[%emt 0:00:40]} b6 {[%emt 0:01:11]} 46. g5 {[%emt 0:00:11]} hxg5 {[%emt 0:00:21]} 47. hxg5 {[%emt 0:00:03]} Ne8 {[%emt 0:00:14]} 48. Be7 {[%emt 0:01:12]} Bxf5 {[%emt 0:00:24]} 49. Rf3 {[%emt 0:00:42]} Be6 {[%emt 0:00:35]} 50. g6 {[%emt 0:00:23]} Nf6 {[%emt 0:01:37]} 51. Bxf6 {[%emt 0:00:27]} gxf6 {[%emt 0:00:20]} 52. Rxf6 {[%emt 0:00:24]} fxg6 {[%emt 0:01:01]} 53. Rxg6+ {[%emt 0:00:22]} Kh7 {[%emt 0:00:32]} 54. Qh2+ {[%emt 0:00:06]} 1-0

[Event "Irish International Open 2019"]
[Site "Dublin"]
[Date "2019.04.18"]
[Round "3.17"]
[White "Melaugh, Gavin"]
[Black "Murphy, Sean"]
[Result "1-0"]
[ECO "B21"]
[WhiteElo "2109"]
[BlackElo "1976"]
[Annotator "NA"]
[PlyCount "79"]
[EventDate "2019.02.28"]
[EventType "swiss"]
[EventCountry "IRL"]
[SourceTitle "playchess.com"]
[Source "ChessBase"]
[SourceQuality "1"]
[TimeControl "5400+30"]

1. e4 {[%emt 0:00:00]} c5 {[%emt 0:00:00]} 2. d4 {[%emt 0:00:00]} cxd4 {[%emt 0:00:12]} 3. c3 {[%emt 0:00:00]} d3 {[%emt 0:00:08]} 4. c4 {[%emt 0:00:06]} d6 {[%emt 0:00:15]} 5. Bxd3 {[%emt 0:00:24]} Nf6 {[%emt 0:00:08]} 6. h3 {[%emt 0:00:25]} g6 {[%emt 0:00:40]} 7. Nc3 {[%emt 0:00:05]} Bg7 {[%emt 0:00:11]} 8. Nf3 {[%emt 0:00:07]} Nc6 {[%emt 0:00:27]} 9. O-O {[%emt 0:00:10]} O-O {[%emt 0:03:40]} 10. Be3 {[%emt 0:00:19]} a6 {[%emt 0:00:57]} 11. a3 {[%emt 0:00:47]} Bd7 {[%emt 0:05:26]} 12. Rc1 {[%emt 0:01:33]} Ne5 {[%emt 0:07:13]} 13. Nxe5 {[%emt 0:01:11]} dxe5 {[%emt 0:04:55]} 14. b4 {[%emt 0:00:21]} Be6 {[%emt 0:04:07]} 15. Qe2 {[%emt 0:02:29]} Nh5 {[%emt 0:01:08]} 16. Nd5 {[%emt 0:01:29]} Bxd5 {[%emt 0:02:25]} 17. exd5 {[%emt 0:04:14]} Nf4 {[%emt 0:04:06]} 18. Qd2 {[%emt 0:01:02]} Nxd3 {[%emt 0:00:46]} 19. Qxd3 {[%emt 0:00:03]} f5 {[%emt 0:00:17]} 20. f3 {[%emt 0:05:04]} Qd7 {[%emt 0:01:10]} 21. Bb6 {[%emt 0:00:55]} f4 {[%emt 0:03:35]} 22. Rfd1 {[%emt 0:02:53]} g5 {[%emt 0:08:21]} 23. c5 {[%emt 0:01:08]} Rab8 {[%emt 0:01:24]} 24. Qb3 {[%emt 0:05:01]} Kh8 {[%emt 0:00:45]} 25. a4 {[%emt 0:00:57]} Qf5 {[%emt 0:01:26]} 26. Qc2 {[%emt 0:00:56]} Qf7 {[%emt 0:05:18]} 27. b5 {[%emt 0:07:02]} axb5 {[%emt 0:00:16]} 28. axb5 {[%emt 0:00:01]} h5 {[%emt 0:00:11]} 29. Qe4 {[%emt 0:00:35]} Qe8 {[%emt 0:07:30]} 30. Bc7 {[%emt 0:00:44]} Ra8 {[%emt 0:12:24]} 31. Bxe5 {[%emt 0:00:06]} Qf7 {[%emt 0:00:26]} 32. Bxg7+ {[%emt 0:00:44]} Qxg7 {[%emt 0:00:10]} 33. Qd4 {[%emt 0:00:11]} Rf6 {[%emt 0:00:09]} 34. c6 {[%emt 0:00:22]} bxc6 {[%emt 0:00:46]} 35. dxc6 {[%emt 0:01:29]} g4 {[%emt 0:00:15]} 36. hxg4 {[%emt 0:02:59]} hxg4 {[%emt 0:00:09]} 37. fxg4 {[%emt 0:00:43]} Qxg4 {[%emt 0:00:41]} 38. c7 {[%emt 0:02:41]} Rc8 {[%emt 0:05:16]} 39. Qd7 {[%emt 0:02:59]} Qg8 {[%emt 0:00:48]} 40. Qxc8 {[%emt 0:57:45]} 1-0

[Event "Irish International Open 2019"]
[Site "Dublin"]
[Date "2019.04.18"]
[Round "3.18"]
[White "Scott, Luke"]
[Black "Melaugh, Shane"]
[Result "1/2-1/2"]
[ECO "E97"]
[WhiteElo "1881"]
[BlackElo "2105"]
[Annotator "NA"]
[PlyCount "74"]
[EventDate "2019.02.28"]
[EventType "swiss"]
[EventCountry "IRL"]
[SourceTitle "playchess.com"]
[Source "ChessBase"]
[SourceQuality "1"]
[TimeControl "5400+30"]

1. d4 {[%emt 0:00:00]} d6 {[%emt 0:00:00]} 2. Nf3 {[%emt 0:00:00]} g6 {[%emt 0:00:00]} 3. c4 {[%emt 0:01:16]} Bg7 {[%emt 0:00:07]} 4. Nc3 {[%emt 0:00:06]} Nf6 {[%emt 0:00:26]} 5. e4 {[%emt 0:00:07]} O-O {[%emt 0:00:06]} 6. Be2 {[%emt 0:00:03]} e5 {[%emt 0:00:11]} 7. O-O {[%emt 0:00:04]} Nc6 {[%emt 0:00:04]} 8. d5 {[%emt 0:00:05]} Ne7 {[%emt 0:00:05]} 9. Bg5 {[%emt 0:00:03]} h6 {[%emt 0:01:10]} 10. Bxf6 {[%emt 0:00:05]} Bxf6 {[%emt 0:00:03]} 11. b4 {[%emt 0:00:06]} Bg7 {[%emt 0:00:58]} 12. c5 {[%emt 0:00:09]} f5 {[%emt 0:00:34]} 13. Bd3 {[%emt 0:00:04]} g5 {[%emt 0:01:02]} 14. Nd2 {[%emt 0:01:18]} c6 {[%emt 0:07:11]} 15. Qb3 {[%emt 0:07:56]} Kh8 {[%emt 0:00:22]} 16. cxd6 {[%emt 0:02:45]} Qxd6 {[%emt 0:00:48]} 17. Nc4 {[%emt 0:00:07]} Qf6 {[%emt 0:00:29]} 18. d6 {[%emt 0:02:11]} Ng6 {[%emt 0:00:07]} 19. exf5 {[%emt 0:03:24]} Bxf5 {[%emt 0:01:40]} 20. Ne4 {[%emt 0:00:08]} Bxe4 {[%emt 0:00:24]} 21. Bxe4 {[%emt 0:00:07]} Nf4 {[%emt 0:01:20]} 22. a4 {[%emt 0:10:48]} Ne2+ {[%emt 0:04:45]} 23. Kh1 {[%emt 0:00:09]} Nd4 {[%emt 0:00:05]} 24. Qe3 {[%emt 0:03:14]} a6 {[%emt 0:07:13]} 25. a5 {[%emt 0:23:40]} Rad8 {[%emt 0:00:28]} 26. Rad1 {[%emt 0:10:56]} Qe6 {[%emt 0:07:56]} 27. Bd3 {[%emt 0:00:24]} Rfe8 {[%emt 0:00:28]} 28. Qe4 {[%emt 0:01:26]} Qg8 {[%emt 0:01:24]} 29. Rfe1 {[%emt 0:02:16]} Nb5 {[%emt 0:01:04]} 30. Rd2 {[%emt 0:09:24]} Nc3 {[%emt 0:07:23]} 31. Qf5 {[%emt 0:02:57]} e4 {[%emt 0:00:21]} 32. Bf1 {[%emt 0:06:29]} Qe6 {[%emt 0:04:16]} 33. Qxe6 {[%emt 0:01:45]} Rxe6 {[%emt 0:00:04]} 34. f3 {[%emt 0:00:08]} Kg8 {[%emt 0:06:36]} 35. g3 {[%emt 0:03:33]} Ree8 {[%emt 0:03:49]} 36. d7 {[%emt 0:02:54]} Re7 {[%emt 0:01:40]} 37. Bh3 {[%emt 0:08:23]} Kf7 {[%emt 0:43:51]} 1/2-1/2

[Event "Irish International Open 2019"]
[Site "Dublin"]
[Date "2019.04.18"]
[Round "3.19"]
[White "Abul Kalam, Azad Lilu"]
[Black "Buonanno, Raffaele"]
[Result "0-1"]
[ECO "B06"]
[WhiteElo "1951"]
[BlackElo "2091"]
[Annotator "NA"]
[PlyCount "124"]
[EventDate "2019.02.28"]
[EventType "swiss"]
[EventCountry "IRL"]
[SourceTitle "playchess.com"]
[Source "ChessBase"]
[SourceQuality "1"]
[TimeControl "5400+30"]

1. e4 {[%emt 0:00:00]} d6 {[%emt 0:07:49]} 2. d4 {[%emt 0:01:21]} g6 {[%emt 0:00:07]} 3. Nf3 {[%emt 0:00:45]} Bg7 {[%emt 0:00:08]} 4. c3 {[%emt 0:01:12]} Nf6 {[%emt 0:00:12]} 5. Qc2 {[%emt 0:00:33]} O-O {[%emt 0:00:30]} 6. Be2 {[%emt 0:00:18]} b6 {[%emt 0:01:12]} 7. Be3 {[%emt 0:01:25]} Bb7 {[%emt 0:00:11]} 8. Nbd2 {[%emt 0:00:11]} Nbd7 {[%emt 0:02:37]} 9. Rd1 {[%emt 0:02:22]} e5 {[%emt 0:00:52]} 10. O-O {[%emt 0:00:37]} h6 {[%emt 0:07:16]} 11. Ne1 {[%emt 0:01:57]} d5 {[%emt 0:02:20]} 12. f3 {[%emt 0:04:46]} Qe7 {[%emt 0:00:45]} 13. Bd3 {[%emt 0:03:10]} Rfe8 {[%emt 0:02:18]} 14. dxe5 {[%emt 0:15:24]} Nxe5 {[%emt 0:00:22]} 15. Bb5 {[%emt 0:07:25]} c6 {[%emt 0:02:34]} 16. Bd3 {[%emt 0:16:53]} Nxd3 {[%emt 0:00:58]} 17. Nxd3 {[%emt 0:02:13]} dxe4 {[%emt 0:00:11]} 18. fxe4 {[%emt 0:05:08]} Nxe4 {[%emt 0:00:23]} 19. Rfe1 {[%emt 0:07:59]} c5 {[%emt 0:01:48]} 20. Nf3 {[%emt 0:01:08]} Rad8 {[%emt 0:02:14]} 21. Nf2 {[%emt 0:00:28]} Rxd1 {[%emt 0:07:36]} 22. Qxd1 {[%emt 0:01:32]} Qc7 {[%emt 0:00:31]} 23. Bc1 {[%emt 0:07:08]} Rd8 {[%emt 0:03:36]} 24. Qe2 {[%emt 0:01:31]} Nxf2 {[%emt 0:00:09]} 25. Qxf2 {[%emt 0:00:35]} Qc6 {[%emt 0:01:04]} 26. Rf1 {[%emt 0:03:10]} Qe6 {[%emt 0:02:52]} 27. Re1 {[%emt 0:02:01]} Qxa2 {[%emt 0:01:47]} 28. Qe3 {[%emt 0:03:48]} Qd5 {[%emt 0:00:56]} 29. Qe7 {[%emt 0:00:30]} a6 {[%emt 0:05:24]} 30. Bf4 {[%emt 0:00:37]} Rd7 {[%emt 0:05:03]} 31. Qe8+ {[%emt 0:02:49]} Kh7 {[%emt 0:00:04]} 32. Be5 {[%emt 0:00:33]} Bxe5 {[%emt 0:05:10]} 33. Rxe5 {[%emt 0:00:43]} Qc6 {[%emt 0:00:20]} 34. Kf2 {[%emt 0:01:08]} Qc8 {[%emt 0:05:31]} 35. Qxc8 {[%emt 0:00:41]} Bxc8 {[%emt 0:00:03]} 36. g3 {[%emt 0:00:59]} Bb7 {[%emt 0:00:07]} 37. Re2 {[%emt 0:00:46]} Kg7 {[%emt 0:00:56]} 38. Nd2 {[%emt 0:00:46]} Kf6 {[%emt 0:01:34]} 39. Nc4 {[%emt 0:00:35]} b5 {[%emt 0:00:33]} 40. Ne5 {[%emt 0:01:06]} Rd1 {[%emt 0:00:08]} 41. h4 {[%emt 0:00:47]} h5 {[%emt 0:00:14]} 42. Nf3 {[%emt 0:00:28]} Rd3 {[%emt 0:04:39]} 43. Ne5 {[%emt 0:01:01]} Rd5 {[%emt 0:00:30]} 44. Nf3 {[%emt 0:00:39]} Rf5 {[%emt 0:00:03]} 45. Re3 {[%emt 0:00:23]} Rxf3+ {[%emt 0:00:04]} 46. Rxf3+ {[%emt 0:00:15]} Bxf3 {[%emt 0:00:03]} 47. Kxf3 {[%emt 0:00:20]} Kf5 {[%emt 0:00:05]} 48. b3 {[%emt 0:00:48]} a5 {[%emt 0:00:05]} 49. Ke3 {[%emt 0:00:08]} Kg4 {[%emt 0:01:18]} 50. Ke4 {[%emt 0:00:58]} Kxg3 {[%emt 0:00:05]} 51. Kd5 {[%emt 0:00:24]} f5 {[%emt 0:00:13]} 52. Kxc5 {[%emt 0:00:28]} f4 {[%emt 0:00:07]} 53. Kxb5 {[%emt 0:00:05]} f3 {[%emt 0:00:05]} 54. Kxa5 {[%emt 0:04:03]} f2 {[%emt 0:31:18]} 55. c4 {[%emt 0:00:00]} f1=Q {[%emt 0:00:00]} 56. c5 {[%emt 0:00:00]} Kf4 {[%emt 0:00:00]} 57. b4 {[%emt 0:00:00]} Ke5 {[%emt 0:00:00]} 58. Kb6 {[%emt 0:00:00]} Kd5 {[%emt 0:00:00]} 59. c6 {[%emt 0:00:45]} Qc4 {[%emt 0:00:00]} 60. b5 {[%emt 0:00:43]} Kd6 {[%emt 0:00:00]} 61. Ka6 {[%emt 0:01:30]} Kc7 {[%emt 0:00:00]} 62. Ka5 {[%emt 0:00:26]} Qxh4 {[%emt 0:00:00]} 0-1

[Event "Irish International Open 2019"]
[Site "Dublin"]
[Date "2019.04.18"]
[Round "3.20"]
[White "Lundback, Anders"]
[Black "McMorrow, John"]
[Result "0-1"]
[ECO "D58"]
[WhiteElo "1806"]
[BlackElo "2058"]
[Annotator "NA"]
[PlyCount "156"]
[EventDate "2019.02.28"]
[EventType "swiss"]
[EventCountry "IRL"]
[SourceTitle "playchess.com"]
[Source "ChessBase"]
[SourceQuality "1"]
[TimeControl "5400+30"]

1. d4 {[%emt 0:00:00]} d5 {[%emt 0:00:57]} 2. c4 {[%emt 0:02:12]} e6 {[%emt 0:00:04]} 3. Nf3 {[%emt 0:00:09]} Nf6 {[%emt 0:00:04]} 4. Nc3 {[%emt 0:00:28]} Be7 {[%emt 0:00:07]} 5. Bg5 {[%emt 0:01:19]} Nbd7 {[%emt 0:00:22]} 6. e3 {[%emt 0:00:17]} h6 {[%emt 0:00:41]} 7. Bh4 {[%emt 0:00:06]} O-O {[%emt 0:00:07]} 8. Rc1 {[%emt 0:00:41]} b6 {[%emt 0:01:32]} 9. cxd5 {[%emt 0:04:03]} exd5 {[%emt 0:01:00]} 10. Bd3 {[%emt 0:02:20]} Bb7 {[%emt 0:01:15]} 11. O-O {[%emt 0:00:23]} c5 {[%emt 0:15:07]} 12. Bb1 {[%emt 0:02:55]} Re8 {[%emt 0:04:57]} 13. Qd3 {[%emt 0:04:15]} Ne4 {[%emt 0:06:31]} 14. Bg3 {[%emt 0:08:49]} Ndf6 {[%emt 0:07:05]} 15. Ne5 {[%emt 0:04:27]} Bd6 {[%emt 0:11:04]} 16. Nxe4 {[%emt 0:17:39]} dxe4 {[%emt 0:02:45]} 17. Qe2 {[%emt 0:02:39]} g6 {[%emt 0:05:56]} 18. a3 {[%emt 0:03:57]} Bd5 {[%emt 0:06:59]} 19. Rfd1 {[%emt 0:05:41]} Qe7 {[%emt 0:08:27]} 20. h3 {[%emt 0:03:12]} Kg7 {[%emt 0:05:32]} 21. Rd2 {[%emt 0:08:02]} Rac8 {[%emt 0:05:19]} 22. Rdc2 {[%emt 0:07:02]} Nh7 {[%emt 0:03:54]} 23. b4 {[%emt 0:04:18]} f6 {[%emt 0:01:32]} 24. bxc5 {[%emt 0:04:03]} bxc5 {[%emt 0:00:51]} 25. Ng4 {[%emt 0:02:12]} Bxg3 {[%emt 0:01:09]} 26. fxg3 {[%emt 0:00:12]} c4 {[%emt 0:02:59]} 27. Rc3 {[%emt 0:02:07]} Qc7 {[%emt 0:01:33]} 28. Ba2 {[%emt 0:03:43]} Qxg3 {[%emt 0:01:15]} 29. Bxc4 {[%emt 0:01:04]} Bxc4 {[%emt 0:01:04]} 30. Rxc4 {[%emt 0:00:02]} Rxc4 {[%emt 0:00:28]} 31. Qxc4 {[%emt 0:00:49]} Re7 {[%emt 0:01:07]} 32. Qc5 {[%emt 0:01:03]} Rf7 {[%emt 0:00:21]} 33. d5 {[%emt 0:00:21]} Ng5 {[%emt 0:00:28]} 34. Kh1 {[%emt 0:00:53]} h5 {[%emt 0:01:24]} 35. Nh2 {[%emt 0:00:09]} Rd7 {[%emt 0:00:38]} 36. Rd1 {[%emt 0:01:34]} Nf7 {[%emt 0:01:07]} 37. Nf1 {[%emt 0:00:52]} Qe5 {[%emt 0:00:24]} 38. Qc6 {[%emt 0:01:00]} Rd6 {[%emt 0:00:32]} 39. Qb7 {[%emt 0:01:13]} a6 {[%emt 0:00:35]} 40. Rd4 {[%emt 0:01:27]} Qg5 {[%emt 0:01:53]} 41. Qb3 {[%emt 0:00:59]} h4 {[%emt 0:00:40]} 42. Nd2 {[%emt 0:00:38]} f5 {[%emt 0:00:21]} 43. Nc4 {[%emt 0:00:21]} Rd7 {[%emt 0:00:33]} 44. Qc3 {[%emt 0:00:50]} Qf6 {[%emt 0:00:26]} 45. Qd2 {[%emt 0:00:50]} Ne5 {[%emt 0:00:33]} 46. Nxe5 {[%emt 0:00:25]} Qxe5 {[%emt 0:00:03]} 47. d6 {[%emt 0:00:20]} Qc5 {[%emt 0:00:52]} 48. Rd5 {[%emt 0:01:04]} Qxa3 {[%emt 0:00:49]} 49. Qd4+ {[%emt 0:00:01]} Kf7 {[%emt 0:00:22]} 50. Qh8 {[%emt 0:00:21]} Qc1+ {[%emt 0:00:38]} 51. Kh2 {[%emt 0:00:03]} Qxe3 {[%emt 0:00:17]} 52. Qxh4 {[%emt 0:00:53]} Ke6 {[%emt 0:00:26]} 53. Rd1 {[%emt 0:00:44]} Rxd6 {[%emt 0:00:44]} 54. Rxd6+ {[%emt 0:01:08]} Kxd6 {[%emt 0:00:02]} 55. Qf6+ {[%emt 0:00:06]} Kd5 {[%emt 0:00:40]} 56. Qxg6 {[%emt 0:00:33]} Qf4+ {[%emt 0:00:22]} 57. Kh1 {[%emt 0:00:24]} Qf1+ {[%emt 0:00:11]} 58. Kh2 {[%emt 0:00:01]} e3 {[%emt 0:00:25]} 59. Qf7+ {[%emt 0:00:45]} Kd4 {[%emt 0:00:19]} 60. Qd7+ {[%emt 0:00:28]} Kc3 {[%emt 0:00:11]} 61. Qc7+ {[%emt 0:00:47]} Qc4 {[%emt 0:01:31]} 62. Qa5+ {[%emt 0:00:42]} Qb4 {[%emt 0:00:27]} 63. Qe5+ {[%emt 0:00:24]} Kd2 {[%emt 0:00:12]} 64. Qd5+ {[%emt 0:00:10]} Kc1 {[%emt 0:00:35]} 65. Qc6+ {[%emt 0:00:27]} Kd1 {[%emt 0:00:11]} 66. Qd5+ {[%emt 0:00:16]} Kc1 {[%emt 0:01:15]} 67. Qc6+ {[%emt 0:00:14]} Kb2 {[%emt 0:00:32]} 68. Qf6+ {[%emt 0:00:43]} Qc3 {[%emt 0:00:12]} 69. Qb6+ {[%emt 0:00:26]} Kc2 {[%emt 0:00:49]} 70. Qxa6 {[%emt 0:01:11]} Qe5+ {[%emt 0:00:18]} 71. Kh1 {[%emt 0:00:57]} e2 {[%emt 0:00:01]} 72. Qa2+ {[%emt 0:00:29]} Kc1 {[%emt 0:00:45]} 73. Qc4+ {[%emt 0:00:36]} Kd2 {[%emt 0:00:22]} 74. Qa2+ {[%emt 0:00:29]} Ke1 {[%emt 0:00:19]} 75. Kg1 {[%emt 0:00:36]} Qe3+ {[%emt 0:00:32]} 76. Kh2 {[%emt 0:00:22]} Kf1 {[%emt 0:00:29]} 77. Qc4 {[%emt 0:00:22]} Qe4 {[%emt 0:00:57]} 78. Qb5 {[%emt 0:00:39]} Qxg2# {[%emt 0:01:34]} 0-1

[Event "Irish International Open 2019"]
[Site "Dublin"]
[Date "2019.04.18"]
[Round "3.21"]
[White "Doyle, Hugh"]
[Black "Larter, Nick J."]
[Result "1-0"]
[ECO "A04"]
[WhiteElo "2042"]
[BlackElo "1830"]
[Annotator "NA"]
[PlyCount "75"]
[EventDate "2019.02.28"]
[EventType "swiss"]
[EventCountry "IRL"]
[SourceTitle "playchess.com"]
[Source "ChessBase"]
[SourceQuality "1"]
[TimeControl "5400+30"]

1. Nf3 {[%emt 1:30:30]} b6 {[%emt 1:30:30]} 2. g3 {[%emt 0:00:30]} Bb7 {[%emt 0:00:30]} 3. Bg2 {[%emt 0:00:30]} e5 {[%emt 0:00:30]} 4. d3 {[%emt 0:00:30]} f5 {[%emt 0:00:30]} 5. e4 {[%emt 0:00:30]} d6 {[%emt 0:00:30]} 6. exf5 {[%emt 0:00:30]} Nf6 {[%emt 0:00:30]} 7. O-O {[%emt 0:00:30]} Qd7 {[%emt 0:00:30]} 8. Nxe5 {[%emt 0:00:30]} Qc8 {[%emt 0:00:30]} 9. Bxb7 {[%emt 0:00:30]} Qxb7 {[%emt 0:00:30]} 10. Ng4 {[%emt 0:00:30]} Nbd7 {[%emt 0:00:30]} 11. Re1+ {[%emt 0:00:30]} Be7 {[%emt 0:00:30]} 12. Qe2 {[%emt 0:00:30]} O-O-O {[%emt 0:00:30]} 13. Nd2 {[%emt 0:00:30]} Nxg4 {[%emt 0:00:30]} 14. Qxg4 {[%emt 0:00:30]} Ne5 {[%emt 0:00:30]} 15. Rxe5 {[%emt 0:00:30]} Bf6 {[%emt 0:00:30]} 16. Re6 {[%emt 0:00:30]} h5 {[%emt 0:00:30]} 17. Qf3 {[%emt 0:00:30]} h4 {[%emt 0:00:30]} 18. Qxb7+ {[%emt 0:00:30]} Kxb7 {[%emt 0:00:30]} 19. Nf3 {[%emt 0:00:30]} hxg3 {[%emt 0:00:30]} 20. fxg3 {[%emt 0:00:30]} Rh5 {[%emt 0:00:30]} 21. g4 {[%emt 0:00:30]} Rh3 {[%emt 0:00:30]} 22. Kg2 {[%emt 0:00:30]} Rdh8 {[%emt 0:00:30]} 23. Rxf6 {[%emt 0:00:30]} gxf6 {[%emt 0:00:30]} 24. Bf4 {[%emt 0:00:30]} R3h7 {[%emt 0:00:30]} 25. Re1 {[%emt 0:00:30]} Rg7 {[%emt 0:00:30]} 26. h3 {[%emt 0:00:30]} Rhh7 {[%emt 0:00:30]} 27. Re6 {[%emt 0:00:30]} Re7 {[%emt 0:00:30]} 28. Nd4 {[%emt 0:00:30]} Ref7 {[%emt 0:00:30]} 29. Re8 {[%emt 0:00:30]} Rh4 {[%emt 0:00:30]} 30. Bg3 {[%emt 0:00:30]} Rh6 {[%emt 0:00:30]} 31. h4 {[%emt 0:00:30]} Rg7 {[%emt 0:00:30]} 32. Kf3 {[%emt 0:00:30]} Rhh7 {[%emt 0:00:30]} 33. h5 {[%emt 0:00:30]} Rf7 {[%emt 0:00:30]} 34. b4 {[%emt 0:00:30]} a6 {[%emt 0:00:30]} 35. a4 {[%emt 0:00:30]} c5 {[%emt 0:00:30]} 36. Ne6 {[%emt 0:00:30]} Rd7 {[%emt 0:00:30]} 37. b5 {[%emt 0:00:30]} Rhe7 {[%emt 0:00:30]} 38. Rf8 {[%emt 0:00:30]} 1-0